fUST/lending_fUST_20250416
["ID","MTS","AMOUNT","RATE_DAILY","PERIOD"]
[358124337,1744756239211,-878.42356164,0.00043706,30]
[358124339,1744756239221,-523.37093356,0.0004379,2]
[358124341,1744756239231,-2000.0,0.00043835,30]
[358124343,1744756239241,-1310.52,0.00043835,120]
[358124345,1744756239254,-40933.26278148,0.0004389,2]
[358124450,1744756240395,-251.0,0.00030697,30]
[358124452,1744756240406,-440.52116,0.0004389,2]
[358124838,1744756244105,-2000.0,0.0004389,2]
[358125069,1744756246168,-3000.0,0.0004389,2]
[358125079,1744756246250,-11759.1821608,0.0004389,2]
[358125107,1744756246506,-8232.95836165,0.0004389,61]
[358125112,1744756246546,-422.37958365,0.0004389,3]
[358125297,1744756261200,270.46652466,0.00025,120]
[358125397,1744757438389,-250.0,0.000247,2]
[358125399,1744757438399,-1000.0,0.000248,2]
[358125401,1744757438408,-300.0,0.00024991,2]
[358125403,1744757438418,-500.0,0.00025,2]
[358125405,1744757438428,-300.0,0.00025052,2]
[358125407,1744757438437,-420.08908737,0.00025053,2]
[358125409,1744757438447,-6800.23408687,0.00025053,2]
[358125412,1744757438458,-2500.0,0.00025053,2]
[358125414,1744757438470,-3250.25933849,0.00025053,2]
[358125416,1744757438480,-160.0,0.00025053,2]
[358125418,1744757438489,-160.0,0.00025053,2]
[358125420,1744757438498,-420.0,0.00027196,2]
[358125422,1744757438508,-164.98915194,0.00027397,2]
[358125424,1744757438517,-312.5017938,0.00028,10]
[358125426,1744757438526,-312.5017938,0.00028,10]
[358125428,1744757438535,-294.70772922,0.00029041,120]
[358125430,1744757438545,-587.0,0.00029596,2]
[358125432,1744757438555,-1000.0,0.00030479,5]
[358125435,1744757438565,-250.15148,0.00030697,30]
[358125438,1744757438574,-249.77428109,0.00030719,2]
[358125441,1744757438584,-823.0,0.00032208,3]
[358125444,1744757438593,-3803.2804326,0.00033199,2]
[358125447,1744757438603,-524.5171565,0.00033901,2]
[358125450,1744757438612,-378.1525177,0.00034394,2]
[358125453,1744757438621,-1152.0,0.0003505,3]
[358125455,1744757438631,-1613.0,0.00038143,3]
[358125457,1744757438640,-222.62,0.000396,7]
[358125459,1744757438650,-1500.0,0.00040498,5]
[358125461,1744757438660,-500.0,0.0004118,30]
[358125463,1744757438670,-189.11922067,0.00041409,28]
[358125465,1744757438679,-2258.0,0.00041509,5]
[358125467,1744757438689,-500.77427084,0.0004179,2]
[358125469,1744757438699,-189.11922063,0.0004205,28]
[358125471,1744757438709,-189.11922063,0.00042691,28]
[358125473,1744757438718,-167.89190999,0.000429,2]
[358125475,1744757438728,-500.0,0.00042979,31]
[358125477,1744757438737,-500.0,0.00042979,31]
[358125479,1744757438746,-500.0,0.00042979,2]
[358125481,1744757438756,-500.0,0.00042979,31]
[358125483,1744757438765,-500.0,0.00042979,2]
[358125485,1744757438774,-500.0,0.00042979,31]
[358125487,1744757438784,-500.0,0.00042979,31]
[358125489,1744757438793,-523.6168407,0.00042979,31]
[358125491,1744757438802,-500.0,0.00042979,2]
[358125493,1744757438812,-636.71452694,0.00042979,31]
[358125495,1744757438821,-500.0,0.00042979,2]
[358125497,1744757438831,-477.93417869,0.00042979,2]
[358125499,1744757438840,-500.0,0.00042979,2]
[358125501,1744757438850,-500.0,0.00042979,2]
[358125503,1744757438859,-500.0,0.00042979,2]
[358125505,1744757438867,-500.0,0.00042979,2]
[358125507,1744757438877,-500.0,0.00042979,2]
[358125509,1744757438886,-500.0,0.00042979,2]
[358125511,1744757438895,-500.0,0.00042979,2]
[358125513,1744757438904,-3000.0,0.0004298,90]
[358125515,1744757438913,-3338.58694036,0.0004298,90]
[358125686,1744757440560,-500.0,0.0004298,90]
[358125698,1744757440666,-1161.41305964,0.0004298,90]
[358125700,1744757440677,-5499.6914282,0.0004298,90]
[358125703,1744757440686,-37765.0943783,0.0004299,2]
[358125705,1744757440702,-547.258,0.00043,30]
[358125707,1744757440712,-500.0,0.00043014,2]
[358125709,1744757440722,-284.3787379,0.00043093,4]
[358125711,1744757440732,-167.89190995,0.00043143,2]
[358125713,1744757440742,-189.11922063,0.00043332,28]
[358125715,1744757440753,-167.89190995,0.00043385,2]
[358125717,1744757440763,-500.0,0.0004352,30]
[358125720,1744757440773,-167.89190995,0.00043628,2]
[358125722,1744757440783,-500.0,0.00043762,30]
[358125724,1744757440793,-560.14442098,0.00043804,31]
[358125726,1744757440803,-500.0,0.00043804,31]
[358125728,1744757440812,-500.0,0.00043804,31]
[358125730,1744757440822,-500.0,0.00043804,31]
[358125732,1744757440832,-156.03030174,0.00043804,31]
[358125734,1744757440842,-5948.93,0.00043805,10]
[358125736,1744757440852,-7574.97,0.00043825,10]
[358125738,1744757440862,-3000.0,0.00043835,120]
[358125740,1744757440871,-8000.0,0.00043835,120]
[358125742,1744757440882,-150.5,0.0004387,120]
[358125744,1744757440892,-167.89190995,0.0004387,2]
[358125746,1744757440902,-500.0,0.00043873,10]
[358125748,1744757440911,-500.0,0.00043873,10]
[358125750,1744757440921,-1255.92,0.00043879,120]
[358125752,1744757440931,-160.0,0.0004388,10]
[358125755,1744757440940,-150.5,0.0004388,120]
[358125757,1744757440951,-7597.95225657,0.0004388,3]
[358125759,1744757440961,-258.39129959,0.0004388,3]
[358125761,1744757440970,-12550.49342536,0.0004388,3]
[358125763,1744757440980,-160.0,0.0004388,3]
[358125765,1744757440990,-7597.95225657,0.0004389,3]
[358125767,1744757441000,-258.39129959,0.0004389,3]
[358125769,1744757441010,-150.5,0.0004389,120]
[358125771,1744757441020,-318.0,0.0004389,14]
[358125773,1744757441030,-60783.6180526,0.0004389,3]
[358125775,1744757441040,-2067.13039672,0.0004389,3]
[358125777,1744757441050,-56893.72301362,0.000439,2]
[358125779,1744757441059,-4116.47918082,0.000439,61]
[358125781,1744757441069,-2221.28369112,0.000439,120]
[358125784,1744757441079,-106348.98602447,0.000439,2]
[358125786,1744757441092,-2871.17374703,0.000439,2]
[358125788,1744757441104,-279.89651618,0.000439,2]
[358126142,1744757444661,-9856.4174283,0.000439,2]
[358126144,1744757444674,-378.5943646,0.000439,2]
[358126147,1744757444692,-10580.92023591,0.000439,2]
[358126161,1744757444809,-3239.21286451,0.000439,2]
[358126286,1744757446348,-1306.51452931,0.000439,2]
[358126287,1744757446360,-637.29062,0.000439,2]
[358126288,1744757446372,-29930.93123279,0.000439,2]
[358126289,1744757446385,-22323.97482592,0.000439,2]
[358126290,1744757446397,-6424.48046282,0.000439,2]
[358126291,1744757446410,-4275.25730808,0.000439,2]
[358126292,1744757446422,-799.99939,0.000439,2]
[358126293,1744757446435,-59720.25095268,0.000439,2]
[358126294,1744757446449,-14593.50405104,0.000439,2]
[358126295,1744757446463,-947.67,0.000439,2]
[358126296,1744757446478,-500.0,0.000439,2]
[358126308,1744757584381,-934.81,0.00045997,30]
[358126309,1744757584410,-934.81,0.00045997,30]
[358126310,1744757584438,-934.81,0.00045997,30]
[358126311,1744757584464,-934.81,0.00045997,30]
[358126312,1744757584490,-934.81,0.00045997,30]
[358126313,1744757584516,-934.81,0.00045997,30]
[358126314,1744757584542,-934.81,0.00045997,30]
[358126315,1744757584569,-934.81,0.00045997,30]
[358126316,1744757584596,-934.81,0.00045997,30]
[358126317,1744757584622,-934.81,0.00045997,30]
[358126318,1744757584648,-934.81,0.00045997,30]
[358126319,1744757584674,-934.81,0.00045997,30]
[358126320,1744757584700,-934.81,0.00045997,30]
[358126321,1744757584727,-934.81,0.00045997,30]
[358126322,1744757584754,-934.81,0.00045997,30]
[358126323,1744757584780,-934.81,0.00045997,120]
[358126324,1744757584806,-934.81,0.00045997,120]
[358126325,1744757584832,-934.81,0.00045997,120]
[358126326,1744757584858,-934.81,0.00045997,120]
[358126327,1744757584884,-934.81,0.00045997,120]
[358126328,1744757584909,-934.81,0.00045997,120]
[358126329,1744757584936,-934.81,0.00045997,120]
[358126330,1744757584962,-934.81,0.00045997,120]
[358126331,1744757584988,-934.87875756,0.00045997,120]
[358126332,1744757585013,-271.0,0.00045997,30]
[358126333,1744757585039,-2216.09350013,0.00045997,30]
[358126334,1744757585065,-199.7248219,0.00045997,120]
[358126335,1744757585091,-152.54934033,0.00045997,120]
[358126336,1744757585116,-280.61577019,0.00045997,120]
[358126337,1744757585141,-1074.56148552,0.00045997,30]
[358126338,1744757585169,-662.17102153,0.00045997,120]
[358126339,1744757585195,-1091.73192539,0.00045997,30]
[358126340,1744757585221,-886.36614924,0.00045997,31]
[358126341,1744757585248,-367.59287575,0.00045997,120]
[358126342,1744757585273,-753.20296434,0.00045997,120]
[358126343,1744757585298,-1196.57479761,0.00045997,120]
[358126344,1744757585324,-279.17051679,0.00045997,30]
[358126345,1744757585351,-755.33223528,0.00045997,60]
[358126346,1744757585376,-2023.07299902,0.00045997,32]
[358126347,1744757585402,-202.33969382,0.00045997,30]
[358126348,1744757585427,-709.23401968,0.00045997,120]
[358126349,1744757585452,-1574.28719192,0.00045997,120]
[358126350,1744757585477,-168.63034183,0.00045997,120]
[358126351,1744757585501,-671.97639063,0.00045997,120]
[358126352,1744757585526,-852.00556729,0.00045997,120]
[358126353,1744757585552,-302.81626497,0.00045997,120]
[358126354,1744757585577,-307.88216104,0.00045997,120]
[358126355,1744757585602,-217.86327689,0.00045997,30]
[358126356,1744757585627,-1083.2149318,0.00045997,30]
[358126357,1744757585657,-844.0,0.00045997,120]
[358126358,1744757585688,-581.89252272,0.00045997,120]
[358126359,1744757585715,-700.0,0.00045997,90]
[358126360,1744757585740,-323.0,0.00045997,120]
[358126361,1744757585770,-968.8764525,0.00045997,120]
[358126362,1744757586110,-1073.38,0.00045997,120]
[358126363,1744757586138,-1073.38,0.00045997,120]
[358126364,1744757586168,-1073.38,0.00045997,120]
[358126365,1744757586198,-1073.38,0.00045997,120]
[358126366,1744757586224,-1073.38,0.00045997,120]
[358126367,1744757586250,-1073.38,0.00045997,120]
[358126368,1744757586274,-1073.38,0.00045997,120]
[358126369,1744757586299,-1073.38,0.00045997,120]
[358126370,1744757586324,-1073.38,0.00045997,120]
[358126371,1744757586349,-1073.38,0.00045997,120]
[358126372,1744757586374,-1073.38,0.00045997,120]
[358126373,1744757586400,-1073.38,0.00045997,120]
[358126374,1744757586424,-1073.38,0.00045997,120]
[358126375,1744757586450,-1073.38,0.00045997,120]
[358126376,1744757586474,-1073.38,0.00045997,120]
[358126377,1744757586505,-1073.38,0.00045997,120]
[358126378,1744757586530,-1073.38,0.00045997,120]
[358126379,1744757586555,-1073.38,0.00045997,120]
[358126380,1744757586583,-1073.38,0.00045997,120]
[358126381,1744757586607,-1073.38,0.00045997,120]
[358126382,1744757586631,-1073.38,0.00045997,120]
[358126383,1744757586655,-1073.38,0.00045997,120]
[358126384,1744757586679,-1073.38,0.00045997,120]
[358126385,1744757586703,-1073.43155292,0.00045997,120]
[358126386,1744757586727,-500.0,0.00045997,120]
[358126387,1744757586752,-500.0,0.00045997,120]
[358126388,1744757586780,-638.91556351,0.00045997,120]
[358126389,1744757586804,-500.0,0.00045997,120]
[358126390,1744757586828,-500.0,0.00045997,120]
[358126391,1744757586853,-500.0,0.00045997,120]
[358126392,1744757586877,-500.0,0.00045997,120]
[358126393,1744757586901,-500.0,0.00045997,120]
[358126394,1744757586926,-500.0,0.00045997,120]
[358126395,1744757586950,-500.0,0.00045997,120]
[358126396,1744757586973,-500.0,0.00045997,120]
[358126397,1744757586997,-500.0,0.00045997,120]
[358126398,1744757587021,-500.0,0.00045997,120]
[358126399,1744757587044,-500.0,0.00045997,120]
[358126400,1744757587070,-500.0,0.00045997,120]
[358126401,1744757587096,-500.0,0.00045997,120]
[358126402,1744757587121,-500.0,0.00045997,120]
[358126403,1744757587145,-500.0,0.00045997,120]
[358126404,1744757587171,-500.0,0.00045997,120]
[358126405,1744757587196,-500.0,0.00045997,120]
[358126406,1744757587222,-500.0,0.00045997,120]
[358126407,1744757587247,-500.0,0.00045997,120]
[358126408,1744757587272,-500.0,0.00045997,120]
[358126409,1744757587297,-500.0,0.00045997,120]
[358126410,1744757587322,-361.23362583,0.00045997,120]
[358126411,1744757587347,-503.32921301,0.00045997,120]
[358126412,1744757587371,-500.0,0.00045997,120]
[358126413,1744757587396,-500.0,0.00045997,120]
[358126414,1744757587420,-500.0,0.00045997,120]
[358126415,1744757587444,-500.0,0.00045997,120]
[358126416,1744757587468,-500.0,0.00045997,120]
[358126417,1744757587493,-500.0,0.00045997,120]
[358126418,1744757587520,-503.28906887,0.00045997,120]
[358126419,1744757587544,-500.0,0.00045997,120]
[358126420,1744757587570,-500.0,0.00045997,120]
[358126421,1744757587595,-500.0,0.00045997,120]
[358126422,1744757587619,-500.0,0.00045997,120]
[358126423,1744757587643,-500.0,0.00045997,120]
[358126424,1744757587668,-233.71380301,0.00045997,120]
[358126425,1744757587691,-500.0,0.00045997,30]
[358126426,1744757587715,-500.0,0.00045997,30]
[358126427,1744757587740,-500.0,0.00045997,30]
[358126428,1744757587766,-500.0,0.00045997,30]
[358126429,1744757587791,-500.0,0.00045997,30]
[358126430,1744757587816,-500.0,0.00045997,30]
[358126431,1744757587841,-500.0,0.00045997,30]
[358126432,1744757587866,-500.0,0.00045997,30]
[358126433,1744757587895,-500.0,0.00045997,30]
[358126434,1744757587919,-500.0,0.00045997,30]
[358126435,1744757587942,-500.0,0.00045997,30]
[358126436,1744757587967,-500.0,0.00045997,30]
[358126437,1744757587992,-500.0,0.00045997,30]
[358126438,1744757588019,-500.0,0.00045997,30]
[358126439,1744757588051,-500.0,0.00045997,30]
[358126440,1744757588077,-500.0,0.00045997,120]
[358126441,1744757588104,-500.0,0.00045997,120]
[358126442,1744757588129,-500.0,0.00045997,120]
[358126443,1744757588155,-500.0,0.00045997,120]
[358126444,1744757588184,-500.0,0.00045997,120]
[358126445,1744757588211,-500.0,0.00045997,120]
[358126446,1744757588239,-500.0,0.00045997,120]
[358126447,1744757588265,-500.0,0.00045997,120]
[358126448,1744757588290,-500.0,0.00045997,120]
[358126449,1744757588315,-500.0,0.00045997,120]
[358126450,1744757588342,-500.0,0.00045997,120]
[358126451,1744757588367,-500.0,0.00045997,120]
[358126452,1744757588392,-500.0,0.00045997,120]
[358126453,1744757588416,-500.0,0.00045997,120]
[358126454,1744757588441,-500.0,0.00045997,120]
[358126455,1744757588466,-500.0,0.00045997,120]
[358126456,1744757588661,-500.0,0.00045997,120]
[358126457,1744757588687,-500.0,0.00045997,120]
[358126458,1744757588712,-500.0,0.00045997,120]
[358126459,1744757588737,-500.0,0.00045997,120]
[358126460,1744757588762,-500.0,0.00045997,120]
[358126461,1744757588788,-500.0,0.00045997,120]
[358126462,1744757588814,-500.0,0.00045997,120]
[358126463,1744757588840,-460.81316704,0.00045997,120]
[358126464,1744757588866,-500.0,0.00045997,120]
[358126465,1744757588891,-500.0,0.00045997,120]
[358126466,1744757588916,-500.0,0.00045997,120]
[358126467,1744757588943,-500.0,0.00045997,120]
[358126468,1744757588968,-575.85707976,0.00045997,120]
[358126469,1744757588994,-504.84666892,0.00045997,120]
[358126470,1744757589019,-500.0,0.00045997,120]
[358126471,1744757589048,-500.0,0.00045997,120]
[358126472,1744757589074,-500.0,0.00045997,120]
[358126473,1744757589101,-500.0,0.00045997,120]
[358126474,1744757589127,-500.0,0.00045997,120]
[358126475,1744757589152,-500.0,0.00045997,120]
[358126476,1744757589184,-500.0,0.00045997,120]
[358126477,1744757589214,-500.0,0.00045997,120]
[358126478,1744757589241,-500.0,0.00045997,120]
[358126479,1744757589267,-500.0,0.00045997,120]
[358126480,1744757589292,-500.0,0.00045997,120]
[358126481,1744757589316,-500.0,0.00045997,120]
[358126482,1744757589343,-500.0,0.00045997,120]
[358126483,1744757589368,-500.0,0.00045997,120]
[358126484,1744757589392,-500.0,0.00045997,120]
[358126485,1744757589417,-607.83886106,0.00045997,120]
[358126486,1744757589443,-500.0,0.00045997,120]
[358126487,1744757589467,-500.0,0.00045997,120]
[358126488,1744757589492,-500.0,0.00045997,120]
[358126489,1744757589517,-500.0,0.00045997,120]
[358126490,1744757589543,-500.0,0.00045997,120]
[358126491,1744757589568,-500.0,0.00045997,120]
[358126492,1744757589596,-500.0,0.00045997,120]
[358126493,1744757589620,-513.67196502,0.00045997,120]
[358126494,1744757589645,-500.0,0.00045997,120]
[358126495,1744757589670,-500.0,0.00045997,120]
[358126496,1744757589694,-500.0,0.00045997,120]
[358126497,1744757589720,-500.0,0.00045997,120]
[358126498,1744757589744,-350.89052661,0.00045997,120]
[358126499,1744757589771,-500.0,0.00045997,120]
[358126500,1744757589798,-211.65966447,0.00045997,120]
[358126501,1744757589824,-500.0,0.00045997,120]
[358126502,1744757589851,-500.0,0.00045997,120]
[358126503,1744757589877,-604.90433405,0.00045997,120]
[358126504,1744757589902,-500.0,0.00045997,120]
[358126505,1744757589926,-500.0,0.00045997,120]
[358126506,1744757589950,-500.0,0.00045997,120]
[358126507,1744757589974,-500.0,0.00045997,120]
[358126508,1744757589997,-500.0,0.00045997,120]
[358126509,1744757590021,-500.0,0.00045997,120]
[358126510,1744757590044,-500.0,0.00045997,120]
[358126511,1744757590068,-500.0,0.00045997,120]
[358126512,1744757590093,-500.0,0.00045997,120]
[358126513,1744757590116,-500.0,0.00045997,120]
[358126514,1744757590140,-500.0,0.00045997,120]
[358126515,1744757590169,-500.0,0.00045997,120]
[358126516,1744757590195,-640.8376629,0.00045997,120]
[358126517,1744757590221,-500.0,0.00045997,120]
[358126518,1744757590248,-500.0,0.00045997,120]
[358126519,1744757590274,-500.0,0.00045997,120]
[358126520,1744757590299,-500.0,0.00045997,120]
[358126521,1744757590325,-500.0,0.00045997,120]
[358126522,1744757590353,-500.0,0.00045997,120]
[358126523,1744757590381,-500.0,0.00045997,120]
[358126524,1744757590409,-500.0,0.00045997,120]
[358126525,1744757590435,-500.0,0.00045997,120]
[358126526,1744757590463,-505.58927,0.00045997,120]
[358126527,1744757590489,-271.17763547,0.00045997,120]
[358126528,1744757590515,-1405.73,0.00045997,120]
[358126529,1744757590541,-1405.73,0.00045997,120]
[358126530,1744757590567,-1405.73,0.00045997,120]
[358126531,1744757590593,-1405.73,0.00045997,120]
[358126532,1744757590618,-1405.73,0.00045997,120]
[358126533,1744757590642,-1405.73,0.00045997,120]
[358126534,1744757590667,-1405.73,0.00045997,120]
[358126535,1744757590692,-1405.73,0.00045997,120]
[358126536,1744757590718,-1405.73,0.00045997,120]
[358126537,1744757590748,-1405.73,0.00045997,120]
[358126538,1744757590775,-1405.73,0.00045997,120]
[358126539,1744757590800,-1405.73,0.00045997,120]
[358126540,1744757590824,-500.0,0.00045997,120]
[358126541,1744757590850,-1405.73,0.00045997,120]
[358126542,1744757590875,-501.37202062,0.00045997,120]
[358126543,1744757590901,-1405.73,0.00045997,120]
[358126544,1744757590927,-1405.73,0.00045997,120]
[358126545,1744757590953,-1405.73,0.00045997,120]
[358126546,1744757590978,-1405.73,0.00045997,120]
[358126547,1744757591004,-1405.73,0.00045997,120]
[358126548,1744757591031,-1405.73,0.00045997,120]
[358126549,1744757591057,-500.0,0.00045997,120]
[358126550,1744757591083,-1405.73,0.00045997,120]
[358126551,1744757591307,-500.0,0.00045997,120]
[358126552,1744757591335,-500.0,0.00045997,120]
[358126553,1744757591361,-1405.73,0.00045997,120]
[358126554,1744757591383,-500.0,0.00045997,120]
[358126555,1744757591404,-1405.73,0.00045997,120]
[358126556,1744757591426,-500.0,0.00045997,120]
[358126557,1744757591448,-1405.73,0.00045997,120]
[358126558,1744757591472,-500.0,0.00045997,120]
[358126559,1744757591500,-1405.79081979,0.00045997,120]
[358126560,1744757591525,-500.0,0.00045997,120]
[358126561,1744757591550,-500.0,0.00045997,120]
[358126562,1744757591575,-756.52,0.00045997,120]
[358126563,1744757591600,-500.0,0.00045997,120]
[358126564,1744757591624,-756.52,0.00045997,120]
[358126565,1744757591649,-500.0,0.00045997,120]
[358126566,1744757591674,-756.52,0.00045997,120]
[358126567,1744757591700,-356.17803168,0.00045997,120]
[358126568,1744757591726,-756.52,0.00045997,120]
[358126569,1744757591753,-756.52,0.00045997,120]
[358126570,1744757591780,-756.52,0.00045997,120]
[358126571,1744757591808,-756.52,0.00045997,120]
[358126572,1744757591835,-756.52,0.00045997,120]
[358126573,1744757591862,-756.52,0.00045997,120]
[358126574,1744757591889,-542.31,0.00045997,120]
[358126575,1744757591916,-756.52,0.00045997,120]
[358126576,1744757591941,-542.31,0.00045997,120]
[358126577,1744757591968,-756.52,0.00045997,120]
[358126578,1744757591999,-542.31,0.00045997,120]
[358126579,1744757592026,-756.52,0.00045997,120]
[358126580,1744757592057,-500.0,0.00045997,120]
[358126581,1744757592086,-542.31,0.00045997,120]
[358126582,1744757592114,-500.0,0.00045997,120]
[358126583,1744757592141,-756.52,0.00045997,120]
[358126584,1744757592169,-542.31,0.00045997,120]
[358126585,1744757592197,-500.0,0.00045997,120]
[358126586,1744757592224,-756.52,0.00045997,120]
[358126587,1744757592251,-542.31,0.00045997,120]
[358126588,1744757592279,-756.52,0.00045997,120]
[358126589,1744757592305,-500.0,0.00045997,120]
[358126590,1744757592331,-542.31,0.00045997,120]
[358126591,1744757592358,-500.0,0.00045997,120]
[358126592,1744757592384,-500.0,0.00045997,120]
[358126593,1744757592410,-756.52,0.00045997,120]
[358126594,1744757592436,-542.31,0.00045997,120]
[358126595,1744757592462,-500.0,0.00045997,120]
[358126596,1744757592490,-500.0,0.00045997,120]
[358126597,1744757592515,-756.52,0.00045997,120]
[358126598,1744757592542,-542.31,0.00045997,120]
[358126599,1744757592567,-500.0,0.00045997,120]
[358126600,1744757592591,-500.0,0.00045997,120]
[358126601,1744757592615,-756.52,0.00045997,120]
[358126602,1744757592641,-542.31,0.00045997,120]
[358126603,1744757592666,-500.0,0.00045997,120]
[358126604,1744757592692,-756.52,0.00045997,120]
[358126605,1744757592719,-500.0,0.00045997,120]
[358126606,1744757592746,-542.31,0.00045997,120]
[358126607,1744757592776,-500.0,0.00045997,120]
[358126608,1744757592806,-500.0,0.00045997,120]
[358126609,1744757592834,-542.31,0.00045997,120]
[358126610,1744757592863,-500.0,0.00045997,120]
[358126611,1744757592892,-500.0,0.00045997,120]
[358126612,1744757592925,-542.31,0.00045997,120]
[358126613,1744757592952,-756.52,0.00045997,120]
[358126614,1744757592981,-500.0,0.00045997,120]
[358126615,1744757593008,-500.0,0.00045997,120]
[358126616,1744757593036,-542.31,0.00045997,120]
[358126617,1744757593064,-756.52,0.00045997,120]
[358126618,1744757593094,-500.0,0.00045997,120]
[358126619,1744757593125,-640.50331839,0.00045997,120]
[358126620,1744757593155,-542.31,0.00045997,120]
[358126621,1744757593188,-500.0,0.00045997,120]
[358126622,1744757593216,-756.52,0.00045997,120]
[358126623,1744757593246,-500.0,0.00045997,120]
[358126624,1744757593276,-542.31,0.00045997,120]
[358126625,1744757593303,-756.52,0.00045997,120]
[358126626,1744757593330,-500.0,0.00045997,120]
[358126627,1744757593357,-542.31,0.00045997,120]
[358126628,1744757593383,-500.0,0.00045997,120]
[358126629,1744757593410,-756.72123551,0.00045997,120]
[358126630,1744757593436,-591.82683107,0.00045997,120]
[358126631,1744757593462,-542.31,0.00045997,120]
[358126632,1744757593487,-542.31,0.00045997,120]
[358126633,1744757593512,-500.0,0.00045997,120]
[358126634,1744757593537,-542.31,0.00045997,120]
[358126635,1744757593562,-157.20947911,0.00045997,120]
[358126636,1744757593587,-542.31,0.00045997,120]
[358126637,1744757593613,-542.31,0.00045997,120]
[358126638,1744757593639,-542.31,0.00045997,120]
[358126639,1744757593666,-542.40756013,0.00045997,120]
[358126640,1744757593692,-500.0,0.00045997,120]
[358126641,1744757593718,-500.0,0.00045997,120]
[358126642,1744757593743,-500.0,0.00045997,120]
[358126643,1744757593772,-500.0,0.00045997,120]
[358126644,1744757593798,-276.02599599,0.00045997,120]
[358126645,1744757593825,-500.0,0.00045997,120]
[358126646,1744757594045,-500.0,0.00045997,120]
[358126647,1744757594072,-500.0,0.00045997,120]
[358126648,1744757594099,-500.0,0.00045997,120]
[358126649,1744757594125,-500.0,0.00045997,120]
[358126650,1744757594150,-500.0,0.00045997,120]
[358126651,1744757594177,-500.0,0.00045997,120]
[358126652,1744757594203,-500.0,0.00045997,120]
[358126653,1744757594229,-500.0,0.00045997,120]
[358126654,1744757594256,-500.0,0.00045997,120]
[358126655,1744757594281,-500.0,0.00045997,120]
[358126656,1744757594308,-500.0,0.00045997,120]
[358126657,1744757594335,-500.0,0.00045997,120]
[358126658,1744757594363,-500.0,0.00045997,120]
[358126659,1744757594392,-500.0,0.00045997,120]
[358126660,1744757594417,-500.0,0.00045997,120]
[358126661,1744757594443,-500.0,0.00045997,120]
[358126662,1744757594469,-500.0,0.00045997,120]
[358126663,1744757594494,-500.0,0.00045997,120]
[358126664,1744757594521,-500.0,0.00045997,120]
[358126665,1744757594549,-500.0,0.00045997,120]
[358126666,1744757594576,-500.0,0.00045997,120]
[358126667,1744757594603,-500.0,0.00045997,120]
[358126668,1744757594629,-500.0,0.00045997,120]
[358126669,1744757594653,-500.0,0.00045997,120]
[358126670,1744757594678,-500.0,0.00045997,120]
[358126671,1744757594703,-500.0,0.00045997,120]
[358126672,1744757594728,-500.0,0.00045997,120]
[358126673,1744757594756,-500.0,0.00045997,120]
[358126674,1744757594781,-500.0,0.00045997,120]
[358126675,1744757594807,-500.0,0.00045997,120]
[358126676,1744757594833,-500.0,0.00045997,120]
[358126677,1744757594861,-500.0,0.00045997,120]
[358126678,1744757594886,-500.0,0.00045997,120]